fUST/lending_fUST_20260604
["ID","MTS","AMOUNT","RATE_DAILY","PERIOD"]
[423944401,1780509045000,-2100.0,0.00017683,2]
[423944404,1780509045000,-2100.0,0.00017683,2]
[423944403,1780509045000,-2100.0,0.00017683,2]
[423944405,1780509045000,-2100.0,0.00017683,2]
[423944406,1780509045000,-2100.0,0.00017683,2]
[423944408,1780509045000,-2100.0,0.00017683,2]
[423944407,1780509045000,-2100.0,0.00017683,2]
[423944409,1780509045000,-2100.0,0.00017683,2]
[423944411,1780509045000,-2100.0,0.00017683,2]
[423944412,1780509045000,-2100.0,0.00017683,2]
[423944414,1780509045000,-2100.0,0.00017683,2]
[423944413,1780509045000,-2100.0,0.00017683,2]
[423944454,1780509045000,-500.0,0.0001817,2]
[423944421,1780509045000,-600.0,0.00017775,2]
[423944445,1780509045000,-354.48090532,0.00017986,2]
[423944490,1780509045000,-2755.43331693,0.000195,2]
[423944480,1780509045000,-457.0791509,0.00019347,2]
[423944481,1780509045000,-326.2939756,0.00019347,2]
[423944491,1780509045000,-1000.0,0.000195,2]
[423944482,1780509045000,-326.2939756,0.00019347,2]
[423944489,1780509045000,-795.0,0.000194,2]
[423944486,1780509045000,-457.0791509,0.00019355,2]
[423944484,1780509045000,-326.2939756,0.00019351,2]
[423944485,1780509045000,-326.2939756,0.00019351,2]
[423944483,1780509045000,-457.0791509,0.00019351,2]
[423944487,1780509045000,-457.0791509,0.00019356,2]
[423944488,1780509045000,-386.7292401,0.00019356,2]
[423944492,1780509045000,-557.62,0.0001954,2]
[423944495,1780509045000,-160.0,0.000196,2]
[423944493,1780509045000,-720.0,0.00019552,2]
[423944496,1780509045000,-168.221969,0.000196,2]
[423944494,1780509045000,-1680.43869383,0.000196,2]
[423944501,1780509045000,-570.631637,0.000196,2]
[423944499,1780509045000,-160.0,0.000196,2]
[423944497,1780509045000,-176.443938,0.000196,2]
[423944504,1780509045000,-293.254275,0.000196,2]
[423944498,1780509045000,-255.952527,0.000196,2]
[423944503,1780509045000,-226.627137,0.000196,2]
[423944505,1780509045000,-114577.9883,0.00019604,2]
[423944500,1780509045000,-365.315818,0.000196,2]
[423944502,1780509045000,-160.0,0.000196,2]
[423944453,1780509045000,-557.62,0.0001817,2]
[423944474,1780509045000,-273.15882841,0.00019126,2]
[423944475,1780509045000,-300.0,0.00019178,2]
[423944479,1780509045000,-2755.43331693,0.000193,2]
[423944471,1780509045000,-1000.0,0.00019,2]
[423944446,1780509045000,-347.87714827,0.00017986,2]
[423944447,1780509045000,-309.14524259,0.00017986,2]
[423944450,1780509045000,-238.19348698,0.00018,2]
[423944449,1780509045000,-320.59612402,0.00017986,2]
[423944451,1780509045000,-2755.43331693,0.00018,2]
[423944448,1780509045000,-375.16014501,0.00017986,2]
[423944452,1780509045000,-1000.0,0.00018,2]
[423944455,1780509045000,-444.0,0.00018175,2]
[423944457,1780509045000,-1847.42089993,0.00018216,2]
[423944456,1780509045000,-2755.43331693,0.000182,2]
[423944465,1780509045000,-557.62,0.00018718,2]
[423944459,1780509045000,-2755.43331693,0.000184,2]
[423944473,1780509045000,-2755.43331693,0.000191,2]
[423944461,1780509045000,-500.0,0.00018444,2]
[423944458,1780509045000,-11645.07979,0.000184,2]
[423944460,1780509045000,-557.62,0.00018444,2]
[423944472,1780509045000,-1130.38691473,0.00019071,2]
[423944470,1780509045000,-61048.44316988,0.00019,7]
[423944478,1780509045000,-389.769507,0.00019293,2]
[423944466,1780509045000,-590.78240885,0.00018718,2]
[423944476,1780509045000,-557.62,0.00019266,2]
[423944467,1780509045000,-2755.43331693,0.000188,2]
[423944477,1780509045000,-457.0791509,0.00019293,2]
[423944468,1780509045000,-2755.43331693,0.000189,2]
[423944506,1780509045000,-2755.43331693,0.000197,2]
[423944462,1780509045000,-1000.0,0.000185,2]
[423944463,1780509045000,-172.342,0.00018521,2]
[423944464,1780509045000,-2755.43331693,0.000186,2]
[423944469,1780509045000,-557.62,0.00018992,2]
[423944514,1780509046000,-296.744967,0.00019796,2]
[423944507,1780509046000,-800.0,0.00019717,2]
[423944517,1780509046000,-127709.07850701,0.0002,2]
[423944508,1780509046000,-160.0,0.00019796,2]
[423944513,1780509046000,-474.21809,0.00019796,2]
[423944509,1780509046000,-380.350702,0.00019796,2]
[423944515,1780509046000,-252.001361,0.00019796,2]
[423944511,1780509046000,-160.0,0.00019796,2]
[423944512,1780509046000,-317.109045,0.00019796,2]
[423944510,1780509046000,-600.701404,0.00019796,2]
[423944516,1780509046000,-557.62,0.00019814,2]
[423944518,1780509046000,-1114.19787185,0.0002,2]
[423944519,1780509046000,-1801.77212347,0.0002,2]
[423944520,1780509046000,-305.9666907,0.0002,2]
[423944552,1780509283000,287.23843648,0.00023304,120]
[423944623,1780510232000,-261.42382624,0.00014763,7]
[423944614,1780510232000,-5000.0,0.0001188,2]
[423944616,1780510232000,-151.6,0.00012,2]
[423944618,1780510232000,-185.06771221,0.00013699,30]
[423944621,1780510232000,-177.55918138,0.00014699,2]
[423944625,1780510232000,-1200.0,0.00015285,2]
[423944629,1780510232000,-3988.7773827,0.00015287,2]
[423944619,1780510232000,-174.28255082,0.00013942,7]
[423944627,1780510232000,-300.0,0.00015286,2]
[423944633,1780510232000,-151.53112871,0.00016164,2]
[423944643,1780510232000,-6810.21252598,0.00017383,2]
[423944636,1780510232000,-303.06225742,0.00016951,2]
[423944640,1780510232000,-500.0,0.00017382,2]
[423944639,1780510232000,-200.0,0.000171,2]
[423944638,1780510232000,-152.0,0.00017066,2]
[423944634,1780510232000,-198.458274,0.00016908,2]
[423944631,1780510232000,-304.3701298,0.00015559,2]
[423944641,1780510232000,-500.0,0.00017382,2]
[423944686,1780510238000,-500.0,0.00017382,2]
[423944688,1780510238000,-82.11647334,0.00017382,2]
[423944684,1780510238000,-500.0,0.00017382,2]
[423944682,1780510238000,-500.0,0.00017382,2]
[423944701,1780510241000,-168.39335656,0.00017382,2]
[423944702,1780510241000,-500.0,0.00017382,2]
[423944709,1780510241000,-18539.9466972,0.00017383,2]
[423944710,1780510241000,-38678.47018479,0.00017383,2]
[423944703,1780510241000,-6503.30664344,0.00017383,2]
[423945073,1780510244000,-6594.87904515,0.00017383,2]
[423945202,1780510246000,-6529.71455842,0.00017383,2]
[423945203,1780510246000,-3652.8961573,0.00017383,2]
[423945201,1780510246000,-8037.24941359,0.00017383,2]
[423945340,1780511432000,-151.6,0.00012,2]
[423945348,1780511432000,-2.08578651,0.00013724,30]
[423945342,1780511432000,-149.91421349,0.00013724,30]
[423945349,1780511432000,-2874.42807456,0.00015895,2]
[423945538,1780511439000,-810.42953441,0.00015895,2]
[423945559,1780511441000,-304.0,0.00015895,2]
[423945878,1780511444000,-1011.14239103,0.00015895,2]
[423945882,1780511444000,-460.0,0.00016941,2]
[423945880,1780511444000,-189.36025003,0.00016155,2]
[423945884,1780511444000,-184.94001226,0.00016942,2]
[423945887,1780511444000,-222.9070844,0.00016942,2]
[423945883,1780511444000,-378.72050007,0.00016942,2]
[423945885,1780511444000,-314.14545168,0.00016942,2]
[423945886,1780511444000,-222.75111077,0.00016942,2]
[423945879,1780511444000,-217.79859504,0.00016055,2]
[423945888,1780511444000,-241.23380635,0.00016942,2]
[423945889,1780511444000,-18942.05626393,0.00017183,2]
[423945890,1780511444000,-1541.35527737,0.00017183,2]
[423945891,1780511444000,-1807.23285433,0.00017183,2]
[423945881,1780511444000,-157.07272584,0.00016155,2]
[423945920,1780511568000,-220.92029171,0.00016978,2]
[423946010,1780512631000,-3420.64699535,0.0001188,2]
[423946022,1780512638000,-152.0,0.00014764,7]
[423946023,1780512638000,-414.28907224,0.00015751,2]
[423946031,1780512638000,-200.99127991,0.00016808,7]
[423946027,1780512638000,-180.22645819,0.00016751,2]
[423946025,1780512638000,-219.94193082,0.00016479,2]
[423946021,1780512638000,-151.6,0.00012,2]
[423946020,1780512638000,-1579.35300465,0.0001188,2]
[423946028,1780512638000,-838.0,0.00016806,2]
[423946024,1780512638000,-265.41041665,0.00015751,2]
[423946033,1780512638000,-181.04271159,0.00016808,7]
[423946029,1780512638000,-300.0,0.00016807,2]
[423946030,1780512638000,-154.0,0.00016808,7]
[423946032,1780512638000,-209.53936443,0.00016808,7]
[423946036,1780512638000,-305.61220332,0.00016882,2]
[423946034,1780512638000,-577.91,0.00016882,2]
[423946035,1780512638000,-500.0,0.00016882,2]
[423946026,1780512638000,-249.3974,0.00016745,2]
[423946037,1780512638000,-13619.52111729,0.00016883,2]
[423946038,1780512638000,-26297.98059828,0.00016883,2]
[423946045,1780512640000,-514.65927069,0.00016883,2]
[423946051,1780512643000,-292.2066766,0.00016882,2]
[423946052,1780512643000,-11259.65629767,0.00016883,2]
[423946060,1780512646000,-1560.87636491,0.00016883,2]
[423946059,1780512646000,-1900.0,0.00016883,2]
[423946431,1780513833000,-152.0,0.00013839,30]
[423946423,1780513833000,-660.65994,0.0001188,2]
[423946425,1780513833000,-4339.34006,0.0001188,2]
[423946433,1780513833000,-173.70329728,0.00014735,2]
[423946429,1780513833000,-152.0,0.00013735,30]
[423946427,1780513833000,-151.6,0.00012,2]
[423946435,1780513833000,-226.30368663,0.00015758,2]
[423946441,1780513833000,-1130.38691473,0.00015758,2]
[423946437,1780513833000,-407.34663594,0.00015758,2]
[423946447,1780513833000,-390.83581113,0.00016513,2]
[423946443,1780513833000,-152.0,0.00016141,7]
[423946439,1780513833000,-724.17179722,0.00015758,2]
[423946462,1780513833000,-7106.92491701,0.00016583,2]
[423946455,1780513833000,-1873.6264246,0.00016583,2]
[423946453,1780513833000,-1952.22487659,0.00016513,2]
[423946459,1780513833000,-4815.12819504,0.00016583,2]
[423946451,1780513833000,-1250.67459561,0.00016513,2]
[423946445,1780513833000,-226.91,0.00016212,2]
[423946457,1780513833000,-59816.55151873,0.00016583,2]
[423946449,1780513833000,-703.50446003,0.00016513,2]
[423946666,1780513838000,-500.0,0.00016682,2]
[423946655,1780513838000,-484159.36387139,0.00016583,2]
[423946654,1780513838000,-152.0,0.00013853,30]
[423946656,1780513838000,-76894.27547812,0.00016583,2]
[423946658,1780513838000,-151.5,0.00016608,2]
[423946657,1780513838000,-151.5,0.00016608,2]
[423946660,1780513838000,-151.5,0.00016608,2]
[423946670,1780513838000,-479.0,0.00016762,2]
[423946665,1780513838000,-575.96747652,0.00016682,2]
[423946661,1780513838000,-151.5,0.00016608,2]
[423946663,1780513838000,-500.0,0.00016681,2]
[423946674,1780513838000,-500.0,0.00016762,2]
[423946662,1780513838000,-223.69927746,0.00016608,2]
[423946675,1780513838000,-525.91736994,0.00016762,2]
[423946673,1780513838000,-500.0,0.00016762,2]
[423946668,1780513838000,-500.0,0.00016682,2]
[423946672,1780513838000,-500.0,0.00016762,2]
[423946669,1780513838000,-162.75866087,0.00016682,2]
[423946664,1780513838000,-460.96818549,0.00016682,2]
[423946659,1780513838000,-302.47922684,0.00016608,2]
[423946671,1780513838000,-500.0,0.00016762,2]
[423946667,1780513838000,-500.0,0.00016682,2]
[423946718,1780513839000,-500.0,0.00017082,2]
[423946723,1780513839000,-200.99127991,0.00017144,7]
[423946721,1780513839000,-154.0,0.00017144,7]
[423946722,1780513839000,-181.04271158,0.00017144,7]
[423946720,1780513839000,-500.96524272,0.00017082,2]
[423946717,1780513839000,-500.0,0.00017036,2]
[423946711,1780513839000,-220.92029171,0.00016978,2]
[423946714,1780513839000,-611.10075194,0.00016982,2]
[423946715,1780513839000,-535.4,0.00017036,2]
[423946725,1780513839000,-152.0,0.0001717,2]
[423946719,1780513839000,-500.0,0.00017082,2]
[423946712,1780513839000,-500.0,0.00016982,2]
[423946705,1780513839000,-185.62592564,0.00016977,2]
[423946716,1780513839000,-198.5,0.00017036,2]
[423946724,1780513839000,-209.53936443,0.00017144,7]
[423946737,1780513839000,-600.0,0.00017424,2]
[423946728,1780513839000,-535.4,0.0001731,2]
[423946730,1780513839000,-210.40658412,0.00017382,2]
[423946726,1780513839000,-500.0,0.00017229,2]
[423946738,1780513839000,-207.25346065,0.00017466,2]
[423946732,1780513839000,-821.94518528,0.00017382,2]
[423946729,1780513839000,-500.0,0.0001731,2]
[423946735,1780513839000,-16032.13876199,0.000174,2]
[423946731,1780513839000,-456.63621404,0.00017382,2]
[423946748,1780513839000,-371.25185128,0.00017502,2]
[423946734,1780513839000,-16032.13876201,0.000174,2]
[423946733,1780513839000,-1461.23588493,0.00017382,2]
[423946736,1780513839000,-16032.13876199,0.000174,2]
[423946740,1780513839000,-198.44634204,0.00017466,2]
[423946727,1780513839000,-304.3839542,0.000173,2]
[423946708,1780513839000,-154.11667689,0.00016978,2]
[423946682,1780513839000,-168.61742672,0.00016762,2]
[423946704,1780513839000,-190.402665,0.00016961,2]
[423946749,1780513839000,-371.51180734,0.00017502,2]
[423946683,1780513839000,-500.0,0.00016762,2]
[423946681,1780513839000,-535.4,0.00016762,2]
[423946678,1780513839000,-500.0,0.00016762,2]
[423946679,1780513839000,-500.0,0.00016762,2]
[423946677,1780513839000,-211.35,0.00016762,2]
[423946676,1780513839000,-500.0,0.00016762,2]
[423946685,1780513839000,-506.44,0.00016762,2]
[423946684,1780513839000,-500.0,0.00016762,2]
[423946680,1780513839000,-500.0,0.00016762,2]
[423946686,1780513839000,-500.0,0.00016762,2]
[423946688,1780513839000,-500.0,0.00016762,2]
[423946698,1780513839000,-326.2939757,0.0001689,2]
[423946689,1780513839000,-18772.7098102,0.00016763,2]
[423946691,1780513839000,-52151.3542171,0.00016763,2]
[423946699,1780513839000,-326.2939756,0.0001689,2]
[423946695,1780513839000,-152.0,0.00016805,7]
[423946702,1780513839000,-607.79,0.00016956,2]
[423946706,1780513839000,-185.75590367,0.00016977,2]
[423946707,1780513839000,-201.02817196,0.00016977,2]
[423946713,1780513839000,-548.92,0.00016982,2]
[423946710,1780513839000,-183.25151348,0.00016978,2]
[423946701,1780513839000,-500.0,0.00016955,2]
[423946703,1780513839000,-500.0,0.00016956,2]
[423946700,1780513839000,-152.0,0.00016913,2]
[423946692,1780513839000,-452.1348008,0.00016763,2]
[423946696,1780513839000,-457.0791509,0.00016882,2]
[423946690,1780513839000,-752.3105764,0.00016763,2]
[423946697,1780513839000,-326.2939757,0.00016882,2]
[423946687,1780513839000,-403.23498134,0.00016762,2]
[423946693,1780513839000,-235.4880464,0.00016763,2]
[423946694,1780513839000,-152.0,0.00016805,7]
[423946751,1780513839000,-500.0,0.00017503,2]
[423946746,1780513839000,-258.81906123,0.00017466,2]
[423946752,1780513839000,-161.49450399,0.00017503,2]
[423946780,1780513839000,-2100.0,0.00017683,2]
[423946782,1780513839000,-2100.0,0.00017683,2]
[423946792,1780513839000,-2100.0,0.00017683,2]
[423946793,1780513839000,-2100.0,0.00017683,2]
[423946781,1780513839000,-2100.0,0.00017683,2]
[423946785,1780513839000,-2100.0,0.00017683,2]
[423946783,1780513839000,-2100.0,0.00017683,2]
[423946784,1780513839000,-2100.0,0.00017683,2]
[423946787,1780513839000,-2100.0,0.00017683,2]
[423946789,1780513839000,-2100.0,0.00017683,2]
[423946788,1780513839000,-2100.0,0.00017683,2]
[423946786,1780513839000,-2100.0,0.00017683,2]
[423946791,1780513839000,-2100.0,0.00017683,2]
[423946790,1780513839000,-2100.0,0.00017683,2]
[423946779,1780513839000,-2100.0,0.00017683,2]
[423946794,1780513839000,-2100.0,0.00017683,2]
[423946797,1780513839000,-2100.0,0.00017683,2]
[423946805,1780513839000,-2100.0,0.00017683,2]
[423946795,1780513839000,-2100.0,0.00017683,2]
[423946800,1780513839000,-2100.0,0.00017683,2]
[423946807,1780513839000,-2100.0,0.00017683,2]
[423946808,1780513839000,-2100.0,0.00017683,2]
[423946799,1780513839000,-2100.0,0.00017683,2]
[423946811,1780513839000,-2100.0,0.00017683,2]
[423946798,1780513839000,-2100.0,0.00017683,2]
[423946809,1780513839000,-2100.0,0.00017683,2]
[423946803,1780513839000,-2100.0,0.00017683,2]
[423946750,1780513839000,-402.05634392,0.00017502,2]
[423946812,1780513839000,-2100.0,0.00017683,2]
[423946813,1780513839000,-2100.0,0.00017683,2]
[423946796,1780513839000,-2100.0,0.00017683,2]
[423946778,1780513839000,-2100.0,0.00017683,2]
[423946810,1780513839000,-2100.0,0.00017683,2]
[423946768,1780513839000,-2100.0,0.00017683,2]
[423946772,1780513839000,-2100.0,0.00017683,2]
[423946739,1780513839000,-174.72029573,0.00017466,2]
[423946744,1780513839000,-174.72842209,0.00017466,2]
[423946743,1780513839000,-244.49644891,0.00017466,2]
[423946741,1780513839000,-173.93857413,0.00017466,2]
[423946747,1780513839000,-203.70902253,0.00017475,2]
[423946745,1780513839000,-160.29806201,0.00017466,2]
[423946753,1780513839000,-418.42256147,0.00017503,2]
[423946755,1780513839000,-366.50302696,0.00017503,2]
[423946757,1780513839000,-535.4,0.00017584,2]
[423946758,1780513839000,-500.0,0.00017584,2]
[423946756,1780513839000,-441.84058341,0.00017503,2]
[423946759,1780513839000,-11645.07979,0.000176,2]
[423946760,1780513839000,-154.0,0.00017648,7]
[423946763,1780513839000,-209.53936443,0.00017648,7]
[423946742,1780513839000,-154.57262129,0.00017466,2]
[423946761,1780513839000,-181.04271158,0.00017648,7]
[423946762,1780513839000,-200.99127991,0.00017648,7]
[423946775,1780513839000,-2100.0,0.00017683,2]
[423946777,1780513839000,-2100.0,0.00017683,2]
[423946776,1780513839000,-2100.0,0.00017683,2]
[423946773,1780513839000,-2100.0,0.00017683,2]
[423946771,1780513839000,-2100.0,0.00017683,2]
[423946774,1780513839000,-2100.0,0.00017683,2]
[423946767,1780513839000,-2100.0,0.00017683,2]
[423946769,1780513839000,-2100.0,0.00017683,2]
[423946754,1780513839000,-308.23335377,0.00017503,2]
[423946765,1780513839000,-2100.0,0.00017683,2]
[423946766,1780513839000,-2100.0,0.00017683,2]
[423946770,1780513839000,-2100.0,0.00017683,2]
[423946764,1780513839000,-2100.0,0.00017683,2]
[423946864,1780513840000,-2100.0,0.00017683,2]
[423946851,1780513840000,-2100.0,0.00017683,2]
[423946862,1780513840000,-2100.0,0.00017683,2]
[423946854,1780513840000,-2100.0,0.00017683,2]
[423946848,1780513840000,-2100.0,0.00017683,2]
[423946849,1780513840000,-2100.0,0.00017683,2]
[423946852,1780513840000,-2100.0,0.00017683,2]
[423946860,1780513840000,-2100.0,0.00017683,2]
[423946858,1780513840000,-2100.0,0.00017683,2]
[423946842,1780513840000,-2100.0,0.00017683,2]
[423946850,1780513840000,-2100.0,0.00017683,2]
[423946856,1780513840000,-2100.0,0.00017683,2]
[423946838,1780513840000,-2100.0,0.00017683,2]
[423946878,1780513840000,-326.2939756,0.00017704,2]
[423946868,1780513840000,-2100.0,0.00017683,2]
[423946870,1780513840000,-2100.0,0.00017683,2]
[423946871,1780513840000,-2100.0,0.00017683,2]
[423946874,1780513840000,-599.2,0.00017683,2]
[423946876,1780513840000,-180.18378746,0.0001769,2]
[423946880,1780513840000,-326.2939756,0.00017704,2]
[423946882,1780513840000,-326.2939756,0.00017704,2]
[423946884,1780513840000,-326.2939756,0.00017704,2]
[423946886,1780513840000,-326.2939756,0.00017704,2]
[423946887,1780513840000,-326.2939756,0.00017704,2]
[423946889,1780513840000,-457.0791509,0.00017704,2]
[423946890,1780513840000,-457.0791509,0.00017704,2]
[423946837,1780513840000,-2100.0,0.00017683,2]
[423946866,1780513840000,-2100.0,0.00017683,2]
[423946843,1780513840000,-2100.0,0.00017683,2]
[423946826,1780513840000,-2100.0,0.00017683,2]
[423946841,1780513840000,-2100.0,0.00017683,2]
[423946814,1780513840000,-2100.0,0.00017683,2]
[423946820,1780513840000,-2100.0,0.00017683,2]
[423946815,1780513840000,-2100.0,0.00017683,2]
[423946817,1780513840000,-2100.0,0.00017683,2]
[423946816,1780513840000,-2100.0,0.00017683,2]
[423946822,1780513840000,-2100.0,0.00017683,2]
[423946819,1780513840000,-2100.0,0.00017683,2]
[423946821,1780513840000,-2100.0,0.00017683,2]
[423946818,1780513840000,-2100.0,0.00017683,2]
[423946823,1780513840000,-2100.0,0.00017683,2]
[423946830,1780513840000,-2100.0,0.00017683,2]
[423946834,1780513840000,-2100.0,0.00017683,2]
[423946829,1780513840000,-2100.0,0.00017683,2]
[423946828,1780513840000,-2100.0,0.00017683,2]
[423946825,1780513840000,-2100.0,0.00017683,2]
[423946824,1780513840000,-2100.0,0.00017683,2]
[423946831,1780513840000,-2100.0,0.00017683,2]
[423946833,1780513840000,-2100.0,0.00017683,2]
[423946832,1780513840000,-2100.0,0.00017683,2]
[423946827,1780513840000,-2100.0,0.00017683,2]
[423946836,1780513840000,-2100.0,0.00017683,2]
[423946845,1780513840000,-2100.0,0.00017683,2]
[423946844,1780513840000,-2100.0,0.00017683,2]
[423946835,1780513840000,-2100.0,0.00017683,2]
[423946840,1780513840000,-2100.0,0.00017683,2]
[423946847,1780513840000,-2100.0,0.00017683,2]
[423946846,1780513840000,-2100.0,0.00017683,2]
[423946839,1780513840000,-2100.0,0.00017683,2]
[423946892,1780513840000,-326.2939756,0.00017704,2]
[423946902,1780513840000,-326.2939756,0.00017704,2]
[423946898,1780513840000,-457.0791509,0.00017704,2]
[423946958,1780513840000,-488.99289783,0.00017853,2]
[423946964,1780513840000,-549.75454045,0.00017853,2]
[423946966,1780513840000,-535.4,0.00017858,2]
[423946972,1780513840000,-238.19348698,0.00018,2]
[423946974,1780513840000,-500.0,0.00018051,2]
[423946976,1780513840000,-200.0,0.000181,2]
[423946970,1780513840000,-184.45632695,0.00018,2]
[423946978,1780513840000,-535.4,0.00018132,2]
[423946968,1780513840000,-160.0,0.00017914,2]
[423946980,1780513840000,-190.402665,0.00018151,2]
[423946982,1780513840000,-154.0,0.00018153,7]
[423946986,1780513840000,-200.99127991,0.00018153,7]
[423946988,1780513840000,-209.53936443,0.00018153,7]
[423946989,1780513840000,-184.45632695,0.000182,2]
[423946991,1780513840000,-150.386,0.00018204,2]
[423946993,1780513840000,-185.0,0.00018204,2]
[423946995,1780513840000,-444.0,0.00018204,2]
[423947003,1780513840000,-172.342,0.0001844,2]
[423946997,1780513840000,-500.0,0.00018325,2]
[423947006,1780513840000,-326.2939756,0.00018525,2]
[423947001,1780513840000,-535.4,0.00018406,2]
[423947010,1780513840000,-457.0791509,0.00018525,2]
[423947004,1780513840000,-184.45632695,0.000185,2]
[423947012,1780513840000,-326.2939756,0.00018525,2]
[423947008,1780513840000,-331.5132502,0.00018525,2]
[423946999,1780513840000,-184.45632695,0.000184,2]
[423946894,1780513840000,-326.2939756,0.00017704,2]
[423946960,1780513840000,-322.98900798,0.00017853,2]
[423946962,1780513840000,-627.6338422,0.00017853,2]
[423946984,1780513840000,-181.04271158,0.00018153,7]
[423946954,1780513840000,-556.87777693,0.00017852,2]
[423946956,1780513840000,-603.08451589,0.00017852,2]
[423946896,1780513840000,-325.7627976,0.00017704,2]
[423946904,1780513840000,-326.2939756,0.00017707,2]
[423946905,1780513840000,-457.0791509,0.00017707,2]
[423946913,1780513840000,-457.0791509,0.00017712,2]
[423946907,1780513840000,-317.8400828,0.00017711,2]
[423946911,1780513840000,-457.0791509,0.00017712,2]
[423946915,1780513840000,-326.2939756,0.00017712,2]
[423946909,1780513840000,-326.2939756,0.00017711,2]
[423946925,1780513840000,-251.09514534,0.00017815,2]
[423946919,1780513840000,-500.0,0.00017777,2]
[423946927,1780513840000,-282.6394691,0.00017815,2]
[423946921,1780513840000,-795.0,0.000178,2]
[423946917,1780513840000,-457.0791509,0.00017712,2]
[423946900,1780513840000,-326.2939756,0.00017704,2]
[423946923,1780513840000,-414.5069213,0.00017815,2]
[423946929,1780513840000,-349.44059147,0.00017815,2]
[423946952,1780513840000,-2283.18107021,0.0001785,2]
[423946951,1780513840000,-517.63812246,0.00017815,2]
[423946949,1780513840000,-320.59612402,0.00017815,2]
[423946947,1780513840000,-349.45684417,0.00017815,2]
[423946943,1780513840000,-256.04409886,0.00017815,2]
[423946945,1780513840000,-258.38618708,0.00017815,2]
[423946939,1780513840000,-309.14524259,0.00017815,2]
[423946935,1780513840000,-163.8308111,0.00017815,2]
[423946937,1780513840000,-347.87714827,0.00017815,2]
[423946933,1780513840000,-396.89268409,0.00017815,2]
[423946931,1780513840000,-354.48090532,0.00017815,2]
[423946941,1780513840000,-375.16014501,0.00017815,2]
[423947090,1780513841000,-151.0,0.00019178,2]
[423947100,1780513841000,-167.086329,0.00019178,2]
[423947088,1780513841000,-167.086329,0.00019178,2]
[423947073,1780513841000,-440.10725765,0.00018999,2]
[423947098,1780513841000,-151.0,0.00019178,2]
[423947085,1780513841000,-151.0,0.00019178,2]
[423947068,1780513841000,-3287.7807411,0.00018908,2]
[423947070,1780513841000,-535.4,0.00018954,2]
[423947071,1780513841000,-500.0,0.00018999,2]
[423947083,1780513841000,-720.0,0.00019166,2]
[423947092,1780513841000,-167.086329,0.00019178,2]
[423947087,1780513841000,-151.0,0.00019178,2]
[423947094,1780513841000,-151.0,0.00019178,2]
[423947111,1780513841000,-167.086329,0.00019178,2]
[423947096,1780513841000,-167.086329,0.00019178,2]
[423947104,1780513841000,-167.086329,0.00019178,2]
[423947105,1780513841000,-167.086329,0.00019178,2]
[423947107,1780513841000,-167.086329,0.00019178,2]
[423947109,1780513841000,-167.086329,0.00019178,2]
[423947114,1780513841000,-167.086329,0.00019178,2]
[423947116,1780513841000,-167.086329,0.00019178,2]
[423947118,1780513841000,-167.086329,0.00019178,2]
[423947120,1780513841000,-151.0,0.00019178,2]
[423947122,1780513841000,-167.086329,0.00019178,2]
[423947113,1780513841000,-167.086329,0.00019178,2]
[423947129,1780513841000,-167.086329,0.00019178,2]
[423947078,1780513841000,-263.0,0.00019,2]
[423947102,1780513841000,-151.0,0.00019178,2]
[423947066,1780513841000,-8346.88297215,0.000189,2]
[423947125,1780513841000,-167.086329,0.00019178,2]
[423947080,1780513841000,-201.41,0.000191,2]
[423947014,1780513841000,-463.8980531,0.00018525,2]
[423947016,1780513841000,-457.0791509,0.00018525,2]
[423947018,1780513841000,-457.0791509,0.00018526,2]
[423947020,1780513841000,-326.2939756,0.00018533,2]
[423947022,1780513841000,-457.0791509,0.00018534,2]